fUST/lending_fUST_20240618
["ID","MTS","AMOUNT","RATE_DAILY","PERIOD"]
[329809984,1718687440299,-521.63921085,0.00018557,2]
[329809987,1718687440308,-500.0,0.00018557,2]
[329809989,1718687440317,-122.93146147,0.00018557,2]
[329809991,1718687440328,-377.35956123,0.00018557,2]
[329809992,1718687440340,-21.30019662,0.00018557,2]
[329809993,1718687440350,-531.85367544,0.00018557,2]
[329809994,1718687440359,-500.0,0.00018557,2]
[329809995,1718687440369,-506.17329839,0.00018557,2]
[329809996,1718687440379,-287.60021767,0.00018557,2]
[329809997,1718687440388,-500.0,0.00018557,2]
[329809998,1718687440398,-508.65429469,0.00018797,2]
[329809999,1718687440407,-509.41863805,0.00018797,2]
[329810000,1718687440416,-303.38012877,0.00018798,7]
[329810001,1718687440426,-461.8917925,0.00018798,2]
[329810002,1718687440437,-155.74741911,0.00018798,2]
[329810003,1718687440447,-195.09025278,0.00018798,2]
[329810004,1718687440456,-275.82048278,0.00018798,2]
[329810005,1718687440466,-155.44441843,0.00018798,2]
[329810006,1718687440475,-502.43798494,0.00018798,2]
[329810007,1718687440487,-690.88893256,0.00018798,2]
[329810008,1718687440498,-368.41273491,0.00018798,2]
[329810009,1718687440508,-500.0,0.00018799,2]
[329810010,1718687440518,-500.0,0.00018799,2]
[329810011,1718687440528,-510.64516183,0.00018799,2]
[329810012,1718687440538,-500.0,0.00018799,2]
[329810013,1718687440547,-164.60318757,0.00018799,2]
[329810014,1718687440558,-500.0,0.00018799,2]
[329810015,1718687440568,-500.0,0.00018799,2]
[329810016,1718687440578,-271.53159734,0.00018799,2]
[329810017,1718687440588,-500.0,0.00018799,2]
[329810018,1718687440598,-916.86,0.00018799,2]
[329810019,1718687440609,-3335.91980237,0.000188,2]
[329810020,1718687440619,-500.0,0.00018831,2]
[329810021,1718687440631,-500.0,0.00018831,2]
[329810022,1718687440641,-500.0,0.00018831,2]
[329810023,1718687440652,-500.0,0.00018831,2]
[329810024,1718687440662,-278.82376315,0.00018831,2]
[329810025,1718687440672,-500.0,0.00018831,2]
[329810026,1718687440685,-300.0,0.00018831,2]
[329810027,1718687440695,-500.0,0.00018831,2]
[329810028,1718687440706,-610.74,0.00018831,2]
[329810029,1718687440716,-500.0,0.00018831,2]
[329810030,1718687440726,-500.0,0.00018831,2]
[329810031,1718687440736,-165.6,0.00018854,2]
[329810033,1718687440746,-8.32023733,0.00018879,2]
[329810042,1718687441172,-1175.0725482,0.00018879,2]
[329810043,1718687441185,-455.2527894,0.000189,2]
[329810044,1718687441194,-150.0,0.00018924,2]
[329810045,1718687441204,-186.0,0.00018979,2]
[329810046,1718687441213,-186.0,0.00018979,2]
[329810047,1718687441222,-186.0,0.00018979,2]
[329810048,1718687441231,-186.0,0.00018979,2]
[329810049,1718687441241,-186.0,0.00018979,2]
[329810050,1718687441251,-186.0,0.00018979,2]
[329810051,1718687441260,-186.0,0.00018979,2]
[329810052,1718687441270,-186.0,0.00018979,2]
[329810053,1718687441279,-186.0,0.00018979,2]
[329810054,1718687441288,-32.24311393,0.00018979,2]
[329810055,1718687442813,-153.75688607,0.00018979,2]
[329810056,1718687442824,-186.0,0.00018979,2]
[329810057,1718687442834,-19.74411397,0.00018979,2]
[329810058,1718687442846,-166.25588603,0.00018979,2]
[329810059,1718687442856,-186.0,0.00018979,2]
[329810060,1718687442866,-186.0,0.00018979,2]
[329810061,1718687442877,-186.0,0.00018979,2]
[329810062,1718687442886,-186.0,0.00018979,2]
[329810063,1718687442895,-186.0,0.00018979,2]
[329810064,1718687442906,-186.0,0.00018979,2]
[329810065,1718687442915,-186.0,0.00018979,2]
[329810066,1718687442925,-186.0,0.00018979,2]
[329810067,1718687442940,-186.0,0.00018979,2]
[329810069,1718687442950,-186.0,0.00018979,2]
[329810071,1718687442959,-186.0,0.00018979,2]
[329810073,1718687442968,-186.0,0.00018979,2]
[329810074,1718687442979,-186.0,0.00018979,2]
[329810075,1718687442990,-186.0,0.00018979,2]
[329810076,1718687443000,-186.0,0.00018979,2]
[329810077,1718687443010,-186.0,0.00018979,2]
[329810078,1718687443021,-186.0,0.00018979,2]
[329810079,1718687443031,-186.0,0.00018979,2]
[329810080,1718687443040,-186.0,0.00018979,2]
[329810081,1718687443051,-186.0,0.00018979,2]
[329810082,1718687443061,-186.0,0.00018979,2]
[329810083,1718687443072,-186.0,0.00018979,2]
[329810084,1718687443082,-186.0,0.00018979,2]
[329810085,1718687443092,-186.0,0.00018979,2]
[329810086,1718687443101,-186.0,0.00018979,2]
[329810087,1718687443111,-186.0,0.00018979,2]
[329810088,1718687443121,-186.0,0.00018979,2]
[329810089,1718687443130,-186.0,0.00018979,2]
[329810090,1718687443139,-32.47832572,0.00018979,2]
[329810092,1718687443153,-153.52167428,0.00018979,2]
[329810094,1718687443164,-186.0,0.00018979,2]
[329810096,1718687443173,-15.07287669,0.00018979,2]
[329810124,1718687443917,-170.92712331,0.00018979,2]
[329810126,1718687443930,-186.0,0.00018979,2]
[329810127,1718687443943,-186.0,0.00018979,2]
[329810128,1718687443953,-186.0,0.00018979,2]
[329810129,1718687443963,-186.0,0.00018979,2]
[329810130,1718687443975,-186.0,0.00018979,2]
[329810131,1718687443984,-186.0,0.00018979,2]
[329810132,1718687443994,-186.0,0.00018979,2]
[329810133,1718687444006,-186.0,0.00018979,2]
[329810134,1718687444016,-186.0,0.00018979,2]
[329810135,1718687444026,-186.0,0.00018979,2]
[329810136,1718687444036,-186.0,0.00018979,2]
[329810137,1718687444047,-186.0,0.00018979,2]
[329810138,1718687444058,-186.0,0.00018979,2]
[329810139,1718687444069,-186.0,0.00018983,2]
[329810140,1718687444080,-186.0,0.00018983,2]
[329810141,1718687444090,-186.0,0.00018983,2]
[329810142,1718687444101,-186.0,0.00018983,2]
[329810143,1718687444111,-186.0,0.00018983,2]
[329810144,1718687444121,-186.0,0.00018983,2]
[329810145,1718687444131,-186.0,0.00018983,2]
[329810146,1718687444141,-186.0,0.00018983,2]
[329810147,1718687444151,-186.0,0.00018983,2]
[329810148,1718687444160,-186.0,0.00018983,2]
[329810149,1718687444171,-186.0,0.00018983,2]
[329810150,1718687444181,-186.0,0.00018983,2]
[329810152,1718687444192,-134.21499426,0.00018983,2]
[329810153,1718687444250,-51.78500574,0.00018983,2]
[329810154,1718687444259,-186.0,0.00018983,2]
[329810155,1718687444270,-186.0,0.00018983,2]
[329810156,1718687444280,-186.0,0.00018983,2]
[329810157,1718687444290,-181.0,0.00018984,2]
[329810158,1718687444299,-181.0,0.00018984,2]
[329810159,1718687444309,-181.0,0.00018984,2]
[329810160,1718687444318,-181.0,0.00018984,2]
[329810161,1718687444328,-181.0,0.00018984,2]
[329810162,1718687444337,-181.0,0.00018984,2]
[329810163,1718687444347,-181.0,0.00018984,2]
[329810164,1718687444357,-181.0,0.00018984,2]
[329810165,1718687444366,-181.0,0.00018984,2]
[329810166,1718687444376,-181.0,0.00018984,2]
[329810167,1718687444385,-181.0,0.00018984,2]
[329810168,1718687444395,-181.0,0.00018984,2]
[329810169,1718687444406,-503.93535159,0.00018985,2]
[329810170,1718687444416,-500.0,0.00018985,2]
[329810171,1718687444426,-503.53585182,0.00018985,2]
[329810172,1718687444436,-508.55727397,0.00018985,2]
[329810173,1718687444446,-202.18547958,0.00018985,2]
[329810192,1718687448741,-303.04569157,0.00018985,2]
[329810193,1718687448750,-196.95430843,0.00018985,2]
[329810194,1718687448761,-279.04820171,0.00018985,2]
[329810195,1718687448770,-503.98424956,0.00018985,2]
[329810196,1718687448779,-151.0,0.00018985,2]
[329810197,1718687448788,-500.0,0.00018985,2]
[329810198,1718687448798,-524.63073246,0.00018985,2]
[329810199,1718687448808,-505.4809868,0.00018985,2]
[329810200,1718687448817,-503.76462567,0.00018985,2]
[329810201,1718687448826,-503.34048491,0.00018985,2]
[329810202,1718687448835,-514.11069073,0.00018985,2]
[329810203,1718687448845,-380.56593346,0.00018985,2]
[329810204,1718687448854,-500.0,0.00019073,2]
[329810205,1718687448863,-500.0,0.00019073,2]
[329810206,1718687448872,-500.0,0.00019073,2]
[329810207,1718687448882,-500.0,0.00019073,2]
[329810208,1718687448891,-916.86,0.00019073,2]
[329810209,1718687448900,-1283.94449838,0.00019105,13]
[329810210,1718687448909,-500.0,0.00019105,2]
[329810211,1718687448919,-500.0,0.00019105,2]
[329810212,1718687448933,-500.0,0.00019105,2]
[329810213,1718687448944,-500.0,0.00019105,2]
[329810214,1718687448953,-500.0,0.00019105,2]
[329810215,1718687448962,-500.0,0.00019105,2]
[329810216,1718687448973,-500.0,0.00019105,2]
[329810217,1718687448982,-500.0,0.00019105,2]
[329810218,1718687448992,-5192.0994265,0.00019125,2]
[329810219,1718687449001,-500.0,0.00019178,2]
[329810220,1718687449012,-500.0,0.00019178,2]
[329810221,1718687449021,-500.0,0.00019178,2]
[329810222,1718687449031,-500.0,0.00019178,2]
[329810223,1718687449040,-500.0,0.00019178,2]
[329810224,1718687449050,-315.25827005,0.00019178,2]
[329810225,1718687449059,-500.0,0.00019178,2]
[329810226,1718687449068,-500.0,0.00019178,2]
[329810227,1718687449077,-500.0,0.00019178,2]
[329810228,1718687449087,-185.47562,0.00019178,2]
[329810229,1718687449096,-151.0,0.00019178,2]
[329810230,1718687449105,-161.058477,0.00019178,2]
[329810231,1718687449114,-161.058477,0.00019178,2]
[329810232,1718687449123,-154.776048,0.00019178,2]
[329810233,1718687449132,-154.776048,0.00019178,2]
[329810234,1718687449142,-166.40344,0.00019178,2]
[329810235,1718687449151,-215.083797,0.00019178,2]
[329810236,1718687449160,-1183.39278549,0.00019209,2]
[329810237,1718687449169,-564.96824431,0.00019259,2]
[329810238,1718687449178,-151.0,0.00019345,2]
[329810239,1718687449189,-433.59356198,0.00019347,2]
[329810240,1718687449198,-500.0,0.00019347,2]
[329810241,1718687449207,-500.0,0.00019347,2]
[329810242,1718687449216,-500.0,0.00019347,2]
[329810243,1718687449226,-916.86,0.00019347,2]
[329810244,1718687449235,-645.65,0.00019357,2]
[329810245,1718687449244,-500.0,0.00019357,2]
[329810246,1718687449254,-507.40264583,0.00019357,2]
[329810247,1718687449263,-427.3905108,0.00019357,2]
[329810248,1718687449272,-500.0,0.00019379,2]
[329810249,1718687449281,-500.0,0.00019379,2]
[329810250,1718687449290,-500.0,0.00019379,2]
[329810251,1718687449299,-570.0,0.00019379,2]
[329810252,1718687449309,-500.0,0.00019379,2]
[329810253,1718687449318,-253.93,0.00019379,2]
[329810254,1718687449327,-500.0,0.00019379,2]
[329810255,1718687449336,-155.2850144,0.00019423,2]
[329810256,1718687449345,-153.0,0.00019423,2]
[329810257,1718687449355,-153.0,0.00019423,2]
[329810258,1718687449364,-153.0,0.00019423,2]
[329810259,1718687449373,-151.0,0.00019532,2]
[329810260,1718687449383,-161.058477,0.00019532,2]
[329810261,1718687449392,-161.058477,0.00019532,2]
[329810262,1718687449401,-154.776048,0.00019532,2]
[329810263,1718687449411,-154.776048,0.00019532,2]
[329810264,1718687449420,-1183.39278549,0.0001954,2]
[329810265,1718687449429,-165.6,0.00019564,2]
[329810266,1718687449439,-500.0,0.00019621,2]
[329810267,1718687449448,-916.86,0.00019621,2]
[329810268,1718687449457,-500.0,0.00019631,2]
[329810269,1718687449467,-500.0,0.00019653,2]
[329810270,1718687449476,-500.0,0.00019653,2]
[329810271,1718687449485,-500.0,0.00019653,2]
[329810272,1718687449494,-500.0,0.00019653,2]
[329810273,1718687449503,-500.0,0.00019653,2]
[329810274,1718687449512,-151.0,0.000198,2]
[329810275,1718687449522,-914.99,0.00019841,2]
[329810276,1718687449531,-8847.50782748,0.00019843,2]
[329810277,1718687449540,-161.058477,0.00019843,2]
[329810278,1718687449549,-161.058477,0.00019843,2]
[329810279,1718687449559,-154.776048,0.00019843,2]
[329810280,1718687449682,-154.776048,0.00019843,2]
[329810281,1718687449694,-945.74878612,0.00019844,2]
[329810282,1718687449707,-215.45514594,0.00019844,2]
[329810283,1718687449715,-388.85042948,0.0001986,3]
[329810284,1718687449729,-232.01957052,0.0001986,3]
[329810285,1718687449740,-1183.39278549,0.0001987,2]
[329810286,1718687449750,-282.05635,0.00019871,2]
[329810287,1718687449760,-206.94,0.00019885,3]
[329810288,1718687449770,-500.0,0.00019895,2]
[329810289,1718687449781,-916.86,0.00019895,2]
[329810290,1718687449791,-330.24,0.00019905,2]
[329810291,1718687449801,-413.89,0.00019917,3]
[329810292,1718687449812,-500.0,0.00019927,2]
[329810293,1718687449821,-500.0,0.00019927,2]
[329810294,1718687449831,-500.0,0.00019927,2]
[329810295,1718687449842,-500.0,0.00019927,2]
[329810296,1718687449851,-500.0,0.00019927,2]
[329810297,1718687449861,-292.71417926,0.0002,2]
[329810298,1718687449870,-4165.79262619,0.0002,2]
[329810299,1718687449879,-1116.29745396,0.0002,2]
[329810300,1718687449888,-154.93809652,0.0002,2]
[329810301,1718687449897,-4391.16215198,0.0002,2]
[329810302,1718687449907,-161.058477,0.0002,2]
[329810303,1718687449916,-161.058477,0.0002,2]
[329810304,1718687449927,-154.776048,0.0002,2]
[329810305,1718687449943,-154.776048,0.0002,2]
[329810306,1718687449952,-914.99,0.00020115,2]
[329810307,1718687449962,-521.97428151,0.00020169,2]
[329810308,1718687449971,-916.86,0.00020169,2]
[329810309,1718687449980,-1183.39278549,0.000202,2]
[329810310,1718687449989,-500.0,0.00020201,2]
[329810311,1718687449999,-500.0,0.00020201,2]
[329810312,1718687450012,-500.0,0.00020201,2]
[329810313,1718687450022,-500.0,0.00020201,2]
[329810314,1718687450031,-500.0,0.00020201,2]
[329810315,1718687450040,-165.6,0.00020275,2]
[329810316,1718687450049,-456.52058352,0.00020295,2]
[329810317,1718687450058,-184.93970845,0.00020295,2]
[329810318,1718687450067,-28730.0372171,0.00020296,2]
[329810319,1718687450077,-161.058477,0.00020296,2]
[329810320,1718687450086,-161.058477,0.00020296,2]
[329810321,1718687450096,-154.776048,0.00020296,2]
[329810322,1718687450104,-154.776048,0.00020296,2]
[329810323,1718687450114,-696.05482623,0.00020298,2]
[329810324,1718687450123,-1295.57261112,0.000203,15]
[329810325,1718687450132,-47328.6498572,0.000203,2]
[329810326,1718687506680,5192.0994265,0.00017957,2]
[329810327,1718687507051,5192.0994265,0.0001814,2]
[329810328,1718687507442,5192.0994265,0.00018502,2]
[329810329,1718687516993,213.654432,0.0001844,2]
[329810330,1718687582689,154.82968734,9.999e-05,2]
[329810331,1718687770683,1283.24538908,9.999e-05,2]
[329810332,1718687783808,182.21961827,9.999e-05,2]
[329810333,1718688425126,-1985.85162039,0.00017602,2]
[329810334,1718688425147,-1812.29369536,0.00017603,2]
[329810336,1718688430110,-703.18854084,0.00017603,2]
[329810337,1718688430132,-260.36782695,0.00017631,2]
[329810338,1718688447098,-544.20333927,0.00017631,2]
[329810339,1718688447120,-39.63217305,0.00017631,2]
[329810340,1718688447142,-5740.38227097,0.00017632,2]
[329810341,1718688548215,-10182.67297483,0.00017632,2]
[329810342,1718688548240,-172.67636145,0.00018294,2]
[329810343,1718688548264,-182.87002008,0.00018294,2]
[329810344,1718688548291,-505.71121282,0.00018557,2]
[329810345,1718688548314,-500.98958676,0.00018557,2]
[329810346,1718688548339,-505.65683165,0.00018557,2]
[329810347,1718688548363,-501.23084903,0.00018557,2]
[329810348,1718688548384,-502.7732771,0.00018557,2]
[329810349,1718688548407,-504.39883636,0.00018557,2]
[329810350,1718688548431,-639.36179176,0.00018677,2]
[329810351,1718688548456,-371.90159856,0.00018697,2]
[329810352,1718688548476,-815.35981916,0.00018756,2]
[329810353,1718688548496,-206.94,0.00018769,3]
[329810354,1718688548520,-620.84,0.00018769,3]
[329810355,1718688548542,-189.67053427,0.00018775,2]
[329810356,1718688548564,-6816.98909958,0.00018777,2]
[329810357,1718688548588,-275.82048278,0.00018777,2]
[329810358,1718688548612,-520.77047888,0.00018777,2]
[329810359,1718688548633,-342.74299605,0.00018777,2]
[329810360,1718688548654,-505.17879002,0.00018777,2]
[329810361,1718688548677,-836.09,0.00018777,2]
[329810362,1718688548699,-500.0,0.00018777,2]
[329810363,1718688548722,-500.0,0.00018777,2]
[329810364,1718688548744,-500.0,0.00018777,2]
[329810365,1718688548765,-500.0,0.00018777,2]
[329810366,1718688548786,-500.0,0.00018777,2]
[329810367,1718688548807,-508.95154563,0.00018777,2]
[329810368,1718688548828,-507.88639297,0.00018777,2]
[329810369,1718688548849,-500.0,0.00018777,2]
[329810370,1718688548871,-500.0,0.00018777,2]
[329810371,1718688548892,-513.57525378,0.00018777,2]
[329810372,1718688548914,-500.0,0.00018777,2]
[329810373,1718688548935,-505.94440019,0.00018777,2]
[329810374,1718688548955,-500.0,0.00018777,2]
[329810375,1718688548975,-517.85293257,0.00018777,2]
[329810376,1718688548996,-1500.41840367,0.00018778,2]
[329810377,1718688549016,-500.0,0.00018778,2]
[329810378,1718688549037,-503.2954803,0.00018778,2]
[329810379,1718688549059,-504.7690941,0.00018778,2]
[329810380,1718688549080,-503.79734809,0.00018778,2]
[329810381,1718688549102,-500.0,0.00018778,2]
[329810382,1718688549123,-508.18740871,0.00018778,2]
[329810383,1718688549293,-501.86109902,0.00018778,2]
[329810384,1718688549315,-277.71245632,0.00018778,2]
[329810385,1718688549338,-506.57480872,0.00018778,2]
[329810386,1718688549363,-505.70979666,0.00018778,2]
[329810387,1718688549385,-503.40032894,0.00018778,2]
[329810388,1718688549407,-507.611095,0.00018778,2]
[329810389,1718688549429,-317.09866361,0.00018778,2]
[329810390,1718688549450,-500.0,0.00018778,2]
[329810391,1718688549476,-500.0,0.00018778,2]
[329810392,1718688549498,-515.90774331,0.00018778,2]
[329810393,1718688549520,-517.25086628,0.00018778,2]
[329810394,1718688549542,-540.84555788,0.00018778,2]
[329810395,1718688549565,-500.0,0.00018778,2]
[329810396,1718688549586,-506.67505619,0.00018778,2]
[329810397,1718688549608,-606.13,0.00018778,2]
[329810398,1718688549630,-550.18692665,0.00018778,2]
[329810399,1718688549652,-515.6017082,0.00018778,2]
[329810400,1718688549673,-521.35019824,0.00018778,2]
[329810401,1718688549694,-504.73385522,0.00018778,2]
[329810402,1718688549718,-532.10720638,0.00018778,2]
[329810403,1718688549749,-500.0,0.00018778,2]
[329810404,1718688549775,-505.64322017,0.00018778,2]
[329810405,1718688549798,-504.78821948,0.00018778,2]
[329810406,1718688549824,-500.0,0.00018778,2]
[329810407,1718688549849,-500.0,0.00018778,2]
[329810408,1718688549874,-500.0,0.00018778,2]
[329810409,1718688549897,-500.0,0.00018778,2]
[329810410,1718688549920,-562.29261135,0.00018778,2]
[329810411,1718688549942,-508.64165293,0.00018778,2]
[329810412,1718688549966,-519.48639158,0.00018778,2]
[329810413,1718688549988,-515.45004743,0.00018778,2]
[329810414,1718688550009,-500.61571525,0.00018778,2]
[329810415,1718688550031,-508.07284642,0.00018778,2]
[329810416,1718688550053,-516.86993245,0.00018778,2]
[329810417,1718688550076,-500.0,0.00018778,2]
[329810418,1718688550098,-516.4804467,0.00018778,2]
[329810419,1718688550122,-500.0,0.00018778,2]
[329810420,1718688550148,-500.0,0.00018778,2]
[329810421,1718688550172,-500.0,0.00018778,2]
[329810422,1718688550195,-138663.71268384,0.00018779,2]
[329810423,1718688550223,-647.78630556,0.00018797,15]
[329810424,1718688550249,-500.0,0.00018797,2]
[329810425,1718688550271,-508.54679742,0.00018797,2]
[329810426,1718688550298,-518.72897501,0.00018797,2]
[329810427,1718688550320,-510.48821151,0.00018797,2]
[329810428,1718688550342,-506.11600022,0.00018797,2]
[329810429,1718688550366,-511.37668073,0.00018797,2]
[329810430,1718688550387,-160.42669482,0.00018797,2]
[329810431,1718688550408,-550.18786116,0.00018797,2]
[329810432,1718688550431,-500.0,0.00018797,2]
[329810433,1718688550452,-385.16833462,0.00018797,2]
[329810558,1718688643436,-641.80489149,0.00018677,2]
[329810559,1718688643449,-11177.70320338,0.00018677,2]
[329810560,1718688643461,-19809.76822191,0.00018677,2]
[329810561,1718688643471,-500.0,0.00018777,2]
[329810562,1718688643481,-373.09702265,0.00018777,2]
[329810564,1718688643491,-500.0,0.00018777,2]
[329810565,1718688643501,-500.0,0.00018778,2]
[329810566,1718688643510,-500.0,0.00018778,2]
[329810567,1718688643520,-517.39997151,0.00018778,2]
[329810568,1718688643532,-811.4839974,0.00018796,2]
[329810569,1718688643543,-252.12399232,0.00018797,2]
[329810571,1718688643553,-501.35420503,0.00018797,2]
[329810572,1718688643562,-500.0,0.00018797,2]
[329810574,1718688643574,-510.54248932,0.00018797,2]
[329810575,1718688643583,-511.66336424,0.00018797,2]
[329810576,1718688643593,-509.28684868,0.00018797,2]
[329810577,1718688643602,-620.3865162,0.00018797,2]
[329810578,1718688643612,-500.0,0.00018797,2]
[329810579,1718688643769,-500.0,0.00018797,2]
[329810580,1718688643790,-500.0,0.00018797,2]
[329810581,1718688643802,-529.20045716,0.00018797,2]
[329810582,1718688643812,-501.26278346,0.00018797,2]
[329810583,1718688643821,-509.55850742,0.00018797,2]
[329810584,1718688643831,-504.24939828,0.00018797,2]
[329810585,1718688643840,-501.05101845,0.00018797,2]
[329810586,1718688643850,-510.77311378,0.00018797,2]
[329810587,1718688643860,-503.75811314,0.00018797,2]
[329810588,1718688643870,-506.19431904,0.00018797,2]
[329810589,1718688643880,-507.45018672,0.00018797,2]
[329810590,1718688643890,-44.28950717,0.00018797,2]
[329810591,1718688643905,-295.6534547,0.00018797,2]
[329810592,1718688643915,-1471.45564532,0.0001889,2]
[329810593,1718688643924,-428.7131961,0.00018891,2]
[329810594,1718688643934,-156.17936081,0.00018891,2]
[329810595,1718688643944,-151.0,0.00018891,2]
[329810596,1718688643955,-392.06942477,0.000189,2]
[329810597,1718688643966,-838.74,0.00018982,2]
[329810598,1718688643977,-151.0,0.00018982,2]
[329810599,1718688643986,-151.0,0.00018982,2]
[329810600,1718688643996,-153.0,0.00019027,2]
[329810601,1718688644006,-153.0,0.00019027,2]
[329810602,1718688644016,-153.0,0.00019027,2]
[329810603,1718688644026,-153.0,0.00019027,2]
[329810604,1718688644039,-153.0,0.00019027,2]
[329810605,1718688644048,-153.0,0.00019027,2]
[329810606,1718688644057,-153.0,0.00019027,2]
[329810607,1718688644066,-153.0,0.00019027,2]
[329810608,1718688644075,-153.0,0.00019027,2]
[329810609,1718688644085,-153.0,0.00019028,2]
[329810610,1718688644095,-153.0,0.00019028,2]
[329810611,1718688644105,-153.0,0.00019028,2]
[329810612,1718688644117,-153.0,0.00019028,2]
[329810613,1718688644127,-153.0,0.00019028,2]
[329810614,1718688644136,-836.09,0.00019051,2]
[329810615,1718688644146,-500.0,0.00019051,2]
[329810616,1718688644155,-288.04068284,0.00019051,2]
[329810617,1718688644166,-500.0,0.00019051,2]
[329810618,1718688644176,-500.0,0.00019051,2]
[329810619,1718688644186,-500.0,0.00019051,2]
[329810620,1718688644196,-500.0,0.00019051,2]
[329810621,1718688644205,-500.0,0.00019052,2]
[329810622,1718688644215,-500.0,0.00019052,2]
[329810623,1718688644224,-500.0,0.00019052,2]
[329810624,1718688644234,-500.0,0.00019052,2]
[329810625,1718688644244,-500.0,0.00019052,2]
[329810626,1718688644253,-230.83,0.00019052,2]
[329810627,1718688644263,-500.0,0.00019052,2]
[329810628,1718688644272,-500.0,0.00019071,2]
[329810629,1718688644284,-500.0,0.00019071,2]
[329810630,1718688644294,-151.0,0.00019071,2]
[329810631,1718688644304,-151.0,0.00019071,2]
[329810632,1718688644318,-371.90159856,0.00019073,2]
[329810633,1718688644328,-151.0,0.00019074,2]
[329810634,1718688644338,-151.0,0.00019104,2]
[329810635,1718688644349,-155.05371,0.00019105,2]
[329810636,1718688644360,-500.0,0.00019178,2]
[329810637,1718688644372,-501.33092441,0.00019178,2]
[329810638,1718688644382,-168.837455,0.00019178,2]
[329810639,1718688644395,-151.0,0.00019178,2]
[329810640,1718688644408,-838.74,0.00019256,2]
[329810641,1718688644417,-836.09,0.00019325,2]
[329810642,1718688644426,-150.14370692,0.00019325,2]
[329810643,1718688644435,-165.033788,0.00019325,2]
[329810644,1718688644445,-151.0,0.00019325,2]
[329810645,1718688644455,-500.0,0.00019325,2]
[329810646,1718688644464,-500.0,0.00019325,2]
[329810647,1718688644474,-500.0,0.00019325,2]
[329810648,1718688644484,-155.48235,0.00019326,2]
[329810649,1718688644494,-500.0,0.00019326,2]
[329810650,1718688644503,-500.0,0.00019326,2]
[329810651,1718688644512,-500.0,0.00019326,2]
[329810652,1718688644522,-500.0,0.00019326,2]
[329810653,1718688644533,-500.0,0.00019326,2]
[329810654,1718688644542,-460.458741,0.00019326,2]
[329810655,1718688644552,-460.458741,0.00019326,2]
[329810656,1718688644561,-500.0,0.00019326,2]
[329810657,1718688644571,-371.90159856,0.00019449,2]
[329810658,1718688644581,-838.74,0.0001953,2]
[329810659,1718688644591,-181.550124,0.00019566,2]
[329810660,1718688644600,-836.09,0.00019599,2]
[329810661,1718688644609,-500.0,0.00019599,2]
[329810662,1718688644619,-500.0,0.00019599,2]
[329810663,1718688644628,-500.0,0.00019599,2]
[329810664,1718688644637,-500.0,0.000196,2]
[329810665,1718688644647,-500.0,0.000196,2]
[329810666,1718688644656,-500.0,0.000196,2]
[329810667,1718688644665,-546.25,0.000196,2]
[329810668,1718688644675,-500.0,0.000196,2]
[329810669,1718688644686,-500.0,0.000196,2]
[329810670,1718688644695,-152.759443,0.00019621,2]
[329810671,1718688644706,-186.23699,0.00019621,2]
[329810672,1718688644716,-838.74,0.00019804,2]
[329810673,1718688644725,-150.0,0.00019813,2]
[329810674,1718688644735,-371.90159856,0.00019824,2]
[329810675,1718688644744,-836.09,0.00019873,2]
[329810676,1718688644754,-500.0,0.00019873,2]
[329810677,1718688644763,-506.62996685,0.00019873,2]